Cogmind - Beta 13 @@@ ROGUE MODE // 2024.03.25 @ 16:34:32 Player: birdman Result: Destroyed by L-31 Rogue with Katana Performance ------------- Evolutions (1) 500 Regions Visited (3) 600 Robots Destroyed (25) 125 Value Destroyed (651) 651 Prototype IDs (2) 40 Alien Tech Used (0) 0 Bonus (19) 19 TOTAL SCORE: 1935 Bonus ------- High Alert Combat Kills 19 Cogmind --------- Core Integrity 0/400 Matter 249/300 Energy 100/100 System Corruption 0% Temperature Cool (0) Movement Core (350) Ox6 Location -9/Storage Parts ------- > --- POWER (1) -------- (None) > --- PROPULSION (2) --- (None) > --- UTILITY (2) ------ Large Storage Unit > --- WEAPON (4) ------- (None) > --- INVENTORY (15) --- Improved Ion Engine Particle Charger Particle Charger Medium Armor Plating Hardlight Generator Hardlight Generator Advanced Beam Cannon Light Assault Rifle Grenade Launcher Rocket Launcher Peak State ------------ > --- POWER ------------ Improved Ion Engine > --- PROPULSION ------- Aluminum Leg Aluminum Leg > --- UTILITY ---------- Large Storage Unit Light Armor Plating > --- WEAPON ----------- Beam Rifle Autogun Mini Grenade Launcher Mini Grenade Launcher > --- INVENTORY -------- Improved Ion Engine Particle Charger Particle Charger Hardlight Generator Hardlight Generator Beam Rifle Light Assault Rifle Grenade Launcher Grenade Launcher Rocket Launcher [Rating: 16] Favorites ----------- Power Ion Engine Engine Ion Engine Propulsion Aluminum Leg Leg Aluminum Leg Utility Light Armor Plating Storage Large Storage Unit Protection Light Armor Plating Weapon Beam Rifle Energy Gun Beam Rifle Ballistic Gun Autogun Launcher Mini Grenade Launcher Build | -11 -10 -9 -9 ------- Run | Yrd Mat Mat Sto Slots Evolved 2 | . . 2 . Power . | . . . . Propulsion . | . . . . Utility . | . . . . Weapon 2 | . . 2 . Parts Attached 24 | 7 3 10 4 Power 3 | 2 . 1 . Engine 3 | 2 . 1 . Core . | . . . . Reactor . | . . . . Propulsion 3 | 2 . . 1 Treads . | . . . . Leg 3 | 2 . . 1 Wheel . | . . . . Hover . | . . . . Flight . | . . . . Utility 4 | 1 1 2 . Device . | . . . . Storage 2 | 1 . 1 . Processor . | . . . . Hackware . | . . . . Protection 2 | . 1 1 . Artifact . | . . . . Weapon 14 | 2 2 7 3 Energy Gun 4 | . 1 1 2 Energy Cannon . | . . . . Ballistic Gun 4 | 2 1 1 . Ballistic Cannon . | . . . . Launcher 6 | . . 5 1 Special Weapon . | . . . . Impact Weapon . | . . . . Slashing Weapon . | . . . . Piercing Weapon . | . . . . Special Melee Weapon . | . . . . Unidentified Prototypes . | . . . . Parts Lost 10 | . . 4 6 Power 1 | . . . 1 Propulsion 2 | . . 1 1 Utility 1 | . . 1 . Weapon 6 | . . 2 4 Highest Loss Streak 6 | . . 4 6 To Critical Strikes . | . . . . Average Slot Usage (%) 93 | . 100 98 53 Engine 11 | . 14 11 10 Leg 22 | . 28 21 14 Storage 11 | . 14 11 11 Protection 10 | . 14 10 . Energy Gun 10 | . 12 10 5 Ballistic Gun 10 | . 16 10 . Launcher 14 | . . 21 11 Naked Turns . | . . . . Heaviest Build 43 | 13 19 43 37 Greatest Support 23 | 20 20 20 23 Greatest Overweight (x) 8 | 3 . 3 8 Average Overweight (x) . | . . 1 2 Largest Inventory Capacity 15 | 8 8 15 15 Average Capacity 12 | 7 8 13 15 Most Carried 13 | 4 7 11 13 Average Carried 7 | 2 5 8 11 Final Capacity 15 | 8 8 15 15 Final Carried 11 | 4 7 11 10 Class Distribution -------------------- 56% | Tank 38% | Mutant 4% | Gunner Dominant Class ---------------- Mutant | -10/Materials Tank | -9/Materials Mutant | -9/Storage Resources | -11 -10 -9 -9 ----------- Run | Yrd Mat Mat Sto Matter Collected 696 | 228 95 347 26 Remotely . | . . . . Salvage Created 515 | . 95 367 53 Parts 42 | . 6 32 4 Haulers Intercepted . | . . . . Recyclers Shooed 1 | . . 1 . Parts Field Recycled . | . . . . Retrieved Matter . | . . . . Parts Self-Destructed . | . . . . Prevented . | . . . . Kills | -11 -10 -9 -9 ------- Run | Yrd Mat Mat Sto Combat Hostiles Destroyed 17 | . 2 13 2 Guns 2 | . 2 . . AOE 15 | . . 13 2 Classes Destroyed 8 | . 1 7 . Worker 2 | . . 2 . Builder 3 | . . 3 . Tunneler 2 | . . 2 . Watcher 1 | . . 1 . Swarmer 4 | . . 4 . Grunt 8 | . 2 4 2 Brawler 1 | . . 1 . Sentry 4 | . . 4 . Best Kill Streak 6 | . 1 6 2 Combat Bots Only 5 | . 1 5 2 Max Kills in Single Turn 3 | . 1 3 2 Gunslinging . | . . . . Exploded 2 | . . 2 2 Melee . | . . . . Uniques/NPCs Destroyed . | . . . . Combat | -11 -10 -9 -9 -------- Run | Yrd Mat Mat Sto Hostile Shots Fired 113 | . 10 63 40 Missed 26 | . 3 17 6 Damage Taken 1468 | . 110 719 639 Core 441 | . 21 115 305 Absorbed by Shields . | . . . . Core Remaining (%) 95 | 100 91 . . Volleys Fired 33 | . 7 18 8 Largest 2 | . 2 2 2 Hottest 112 | . 79 63 112 Shots Fired 59 | . 14 30 15 Gun 26 | . 14 . 12 Cannon . | . . . . Launcher 33 | . . 30 3 Special . | . . . . Kinetic 7 | . 7 . . Thermal 19 | . 7 . 12 Explosive 33 | . . 30 3 Electromagnetic . | . . . . Robot Hit Streak 7 | . 4 7 6 Robot Miss Streak 2 | . 2 1 2 Penetration Max . | . . . . Secondary Targets . | . . . . Shots Hit Robots 29 | . 9 10 10 Core Hits 54 | . 4 45 5 Critical Kills . | . . . . Critical Parts Destroyed . | . . . . Critical Strikes . | . . . . Melee Attacks . | . . . . Impact . | . . . . Slashing . | . . . . Piercing . | . . . . Sneak Attacks . | . . . . Combat Hostiles . | . . . . Follow-up Attacks . | . . . . Damage Inflicted 1631 | 1 133 1219 278 Guns 261 | . 133 . 128 Cannons . | . . . . Explosions 1369 | . . 1219 150 Melee . | . . . . Ramming 1 | 1 . . . Kinetic 62 | . 62 . . Thermal 199 | . 71 . 128 Explosive 1369 | . . 1219 150 Electromagnetic . | . . . . Impact . | . . . . Slashing . | . . . . Piercing . | . . . . Highest Corruption . | . . . . Average Corruption . | . . . . Corruption Purged . | . . . . Corruption Blocked . | . . . . Overload Shots . | . . . . Overflow Damage 19 | . . 6 13 Projectiles . | . . . . Explosions 19 | . . 6 13 Melee . | . . . . Knockbacks . | . . . . Impact . | . . . . Kinetic . | . . . . Secondary . | . . . . Self-Inflicted Damage 144 | . . 103 41 Shots 5 | . . 4 1 Rammed . | . . . . Targets Rammed 1 | 1 . . . Kicked 1 | 1 . . . Crushed . | . . . . Highest Temperature 282 | . 152 51 282 Average Temperature 67 | . 69 9 139 Received Heat Transfer 426 | . 51 237 138 Siege Activations . | . . . . Robots Corrupted . | . . . . Combat Hostiles . | . . . . Parts Fried . | . . . . Impact Corruptions . | . . . . Robots Melted . | . . . . Combat Hostiles . | . . . . Parts Melted . | . . . . Heat Transferred 518 | . 185 . 333 Parts Sabotaged . | . . . . Parts Stolen . | . . . . Parts Stripped . | . . . . Power Chain Reactions . | . . . . Alert | -11 -10 -9 -9 ------- Run | Yrd Mat Mat Sto Peak Influence 554 | . 71 554 321 Initial 217 | . . 29 217 Average 123 | . 31 147 265 Maximum Alert Level 2 | . . 2 1 Low Security (%) 72 | 100 100 72 . Level 1 18 | . . 13 100 Level 2 8 | . . 14 . Level 3 . | . . . . Level 4 . | . . . . Level 5 . | . . . . High Security . | . . . . Max Security . | . . . . Squads Dispatched 1 | . . . 1 Investigation . | . . . . Extermination . | . . . . Reinforcement 1 | . . . 1 Assault . | . . . . Garrison . | . . . . Intercept . | . . . . Searches Triggered . | . . . . Construction Impeded . | . . . . Haulers Reinforced . | . . . . Active Scanning Responses . | . . . . Cargo Convoy Interrupts . | . . . . Stealth | -11 -10 -9 -9 --------- Run | Yrd Mat Mat Sto Distress Signals 1 | . . 1 . Communications Jammed . | . . . . Distress Signals . | . . . . Times Spotted 23 | . 4 14 5 Peak Tracking Total 3 | . 2 3 3 Tactical Retreats 1 | . 1 . . Traps | -11 -10 -9 -9 ------- Run | Yrd Mat Mat Sto Traps Triggered 1 | . 1 . . Indirectly . | . . . . Trap Hack Attempts . | . . . . Triggered . | . . . . Disarmed . | . . . . Reprogrammed . | . . . . Reused . | . . . . Traps Extracted . | . . . . Installed . | . . . . Triggered . | . . . . Machines | -11 -10 -9 -9 ---------- Run | Yrd Mat Mat Sto Machines Disabled 5 | . . 3 2 Max in Single Turn 2 | . . 1 2 Machines Repaired . | . . . . Machines Dismantled . | . . . . Machines Sabotaged . | . . . . Overloaded Fab Kills . | . . . . Hacking | -11 -10 -9 -9 --------- Run | Yrd Mat Mat Sto Machines Accessed 4 | . 3 1 . Terminals 2 | . 1 1 . Fabricators . | . . . . Repair Stations 1 | . 1 . . Recycling Units 1 | . 1 . . Scanalyzers . | . . . . Garrison Access . | . . . . Total Hacks 5 | . 3 2 . Successful 4 | . 3 1 . Failed 1 | . . 1 . Catastrophic . | . . . . Database Lockouts . | . . . . Manual . | . . . . Terminals 3 | . 1 2 . Fabricators . | . . . . Repair Stations 1 | . 1 . . Recycling Units 1 | . 1 . . Scanalyzers . | . . . . Garrison Access . | . . . . Terminal Hacks 2 | . 1 1 . Record 1 | . . 1 . Prototype ID Bank 1 | . 1 . . Fabricator Hacks . | . . . . Repair Station Hacks 1 | . 1 . . Scan Component 1 | . 1 . . Recycling Unit Hacks 1 | . 1 . . Report Inventory 1 | . 1 . . Scanalyzer . | . . . . Garrison Access Hacks . | . . . . Unauthorized Hacks . | . . . . Terminals . | . . . . Fabricators . | . . . . Repair Stations . | . . . . Recycling Units . | . . . . Scanalyzers . | . . . . Garrison Access . | . . . . Data Cores Recovered . | . . . . Used . | . . . . Hacking Detections . | . . . . Full Trace Events . | . . . . Feedback Events . | . . . . Feedback Blocked . | . . . . Robot Schematics Acquired . | . . . . Robots Built . | . . . . Authchips . | . . . . Time . | . . . . Total Robot Build Rating . | . . . . Part Schematics Acquired . | . . . . Parts Built . | . . . . Authchips . | . . . . Time . | . . . . Total Part Build Rating . | . . . . Parts Repaired . | . . . . Time . | . . . . Parts Recycled . | . . . . Recycled Matter . | . . . . Retrieved Matter . | . . . . Retrieved Components . | . . . . Parts Scanalyzed . | . . . . Part Schematics Acquired . | . . . . Parts Damaged . | . . . . Bothacking | -11 -10 -9 -9 ------------ Run | Yrd Mat Mat Sto Used RIF Installer . | . . . . Robots Hacked . | . . . . Non-combat . | . . . . Combat . | . . . . Robot Hacks Applied . | . . . . Relay Couplers Released . | . . . . Fabnet Peak Effective % . | . . . . Robots Rewired . | . . . . Allies Hacked . | . . . . Hacks Repelled . | . . . . Allies | -11 -10 -9 -9 -------- Run | Yrd Mat Mat Sto Total Allies . | . . . . Largest Group . | . . . . Highest-Rated Group . | . . . . Highest-Rated Ally . | . . . . Total Orders . | . . . . Ally Attacks . | . . . . Total Damage . | . . . . Kills . | . . . . Allies Corrupted . | . . . . Allies Melted . | . . . . Intel | -11 -10 -9 -9 ------- Run | Yrd Mat Mat Sto Robot Analysis Total . | . . . . Derelict Logs Recovered . | . . . . Drone Launches . | . . . . Drone Recoveries . | . . . . Exploration | -11 -10 -9 -9 ------------- Run | Yrd Mat Mat Sto Turns Passed 1156 | 70 281 679 126 Spaces Moved 587 | 44 208 296 39 Core 14 | 10 . . 4 Treads . | . . . . Legs 573 | 34 208 296 35 Wheels . | . . . . Hover . | . . . . Flight . | . . . . Fastest Speed 50 | 50 120 190 190 Average Speed 171 | 127 120 204 252 Slowest Speed 450 | 200 120 330 450 Overloaded Moves . | . . . . Propulsion Burnouts . | . . . . Robots Hopped . | . . . . Cave-ins Triggered . | . . . . Exploration Rate (%) 20 | 3 39 30 11 Regions Visited 3 Branch Regions 1 Pre-discovered Areas . | . . . . Known Exits Taken . | . . . . Unknown Exits Taken 3 | 1 1 1 . Scrap Searched . | . . . . Spaces Dug . | . . . . Terrain Destroyed 207 | . . 190 17 Melee . | . . . . Projectile . | . . . . AOE 207 | . . 190 17 Terrain Rammed . | . . . . Walls Destroyed . | . . . . Machines Disabled . | . . . . Actions | -11 -10 -9 -9 --------- Run | Yrd Mat Mat Sto Total 680 | 54 228 345 53 Wait 4 | . 2 2 . Move 584 | 43 207 295 39 Hop . | . . . . Pick Up 17 | 3 4 10 . Fast Attach 11 | 6 3 1 1 Attach 9 | . . 6 3 Detach 8 | . 2 4 2 Swap 4 | 1 . 3 . Drop 9 | . 3 6 . Fire 33 | . 7 18 8 Melee . | . . . . Ram . | . . . . Kick 1 | 1 . . . Crush . | . . . . Escape Stasis . | . . . . Rewire . | . . . . Trap . | . . . . Miscellaneous . | . . . . Route ------- -11/Scrapyard -10/Materials -9/Materials -9/Storage History --------- Turn | Location | Event 24 | -11/Scrapyard | Discovered new exit (range 15) 71 | -11/Scrapyard | Entered Materials 264 | -10/Materials | Discovered new exit (range 3) 318 | -10/Materials | Build established: Mutant 352 | -10/Materials | Entered another Materials area 352 | -9/Materials | Evolved 2 slots: Weapon x2 652 | -9/Materials | Build established: Tank 977 | -9/Materials | Discovered new exit (range 10) 1031 | -9/Materials | Entered Storage 1056 | -9/Storage | Lost 4 parts (1n1u2w) 1141 | -9/Storage | Core integrity fell below 50% 1153 | -9/Storage | Core integrity fell below 20% 1157 | -9/Storage | Destroyed by L-31 Rogue with Katana Last Messages --------------- 01036_ ALERT: Hostiles spotted, dispatching reinforcements to Terminal S017. 01084_ Acquired Imp. Aluminum Leg. 01104_ C-30 ARC bursts open, deploying its payload. 01104_ G-34 Mercenary unfolds itself. 01105_ Transfer Shaft disabled. 01105_ G-34 Mercenary destroyed. 01131_ Aluminum Leg severed. 01134_ Beam Rifle destroyed. 01134_ Mni. Grenade Launcher destroyed. 01136_ L-31 Rogue heat short circuits Imp. Aluminum Leg. 01136_ The unstable cave ceiling collapses. 01136_ Beam Rifle destroyed. 01138_ Grenade Launcher destroyed. 01142_ Imp. Aluminum Leg destroyed. 01147_ Acquired 26 matter. 01148_ The unstable cave ceiling collapses. 01148_ Imp. Ion Engine destroyed. Map ----- +----------------------------------------------------+ | ??????????????????????????????? | | ??????????????????????????????? | | ??????????????????????????????? | | ??????????????????????????????? | | ??????????????????????????????? | | ??????????????????????????????? | | ??????????????????????????????? | | ??????????????????????????????? | | ??????????????????????????????? | | ??????????????????????????????? | | ??????????????????????????????? | | ??????????????????????????????? | | ??????????????????????????????? | | ????????????+?????????????????? | | ?#####??? #?????????????????? | | ##"T"#### #?????????????????? | | # # #?????????????????? | | # # a#?????????????????? | | # # #??#####??????????? | | " # #?? ??????????? | | #= gg# #? ""??????????? | | # #? """#????????? | | =% #? """?????????? | | ! %m + ?????????? | | # l # # = """?????????? | | """@ # # ""??????????? | | # # #= ""??????????? | | #####+### # ????????????? | | # # #????????????????? | | # """ #????????????????? | | # """ ##????????????????? | | # """ ##????????????????? | | # #????????????????? | | # """ #????????????????? | | # """ # ##????????????????? | | # """ # #?????????????????? | | # # #?????????????????? | | # # #?????????????????? | | # # #?????????????????? | | ###"T"#######?????????????????? | | ??####????????????????????????? | | ??????????????????????????????? | | ??????????????????????????????? | | ??????????????????????????????? | | ??????????????????????????????? | | ??????????????????????????????? | | ??????????????????????????????? | | | | | | | +----------------------------------------------------+ Best States ------------- Heat Dissipation 28 Energy Generation 12 Energy Capacity 265 Matter Stores 300 Matter Capacity 300 Sight Range 16 Terrain Scan Density 10 Armor Coverage 225 Evasion (%) 55 Item Schematics ----------------- None Robot Schematics ------------------ None Fabricated ------------ Nothing Alien Tech Used ----------------- None Achievements -------------- None Challenges ------------ None Game ------ Seed MetaDeliverySaw Manual? 0 Play Time 00:21:26 Cumulative 10.4 hours Start 2024.03.25 @ 16:06:12 End 2024.03.25 @ 16:34:32 Sessions 1 Manual Loads 0 Difficulty Rogue Special Mode None Game No. 18 Rogue 18 Adventurer 0 Explorer 0 Win Type - Total 0 Types 0/0/0/0/0/0/0/0/0 Lore% 4 Gallery% 20 Achievement% 15 Wizard Run 0 Options --------- Layout 1 ASCII 0 Keyboard 0 Movement Numpad Keybinds 0 Fullscreen 1 Font 32/SmallcapsGlow Map View 50x35 Zoom Use 0% Tactical HUD 1 Map Filters NONE Filters NONE Steam 1 RUN: 4de62d18-c68a-4e21-b62f-e933ae630d4f